fUSD/lending_fUSD_20241004
["ID","MTS","AMOUNT","RATE_DAILY","PERIOD"]
[339855918,1728072647236,-500.0,0.00037261,120]
[339855919,1728072647254,-615.31,0.00037261,120]
[339855920,1728072647263,-608.59,0.00037261,120]
[339855921,1728072647272,-500.0,0.00037261,120]
[339855922,1728072647281,-475.4762002,0.00037261,120]
[339855923,1728072647290,-500.0,0.00037261,120]
[339855924,1728072647299,-500.0,0.00037261,120]
[339855925,1728072647308,-500.0,0.00037261,120]
[339855926,1728072647317,-500.0,0.00037261,120]
[339855927,1728072647326,-500.0,0.00037261,120]
[339855928,1728072647335,-500.0,0.00037261,120]
[339855929,1728072647345,-500.0,0.00037261,120]
[339855930,1728072647354,-498.28,0.00037261,120]
[339855931,1728072647364,-200.02,0.00037261,120]
[339855932,1728072647373,-500.0,0.00037261,120]
[339855933,1728072647382,-604.81,0.00037261,120]
[339855934,1728072647391,-500.0,0.00037261,120]
[339855935,1728072647400,-500.0,0.00037261,120]
[339855936,1728072647410,-500.0,0.00037261,120]
[339855937,1728072647419,-500.0,0.00037261,120]
[339855938,1728072647428,-500.0,0.00037261,120]
[339855939,1728072647437,-500.0,0.00037261,120]
[339855940,1728072647446,-542.92789472,0.00037261,120]
[339855941,1728072647455,-500.0,0.00037261,120]
[339855942,1728072647464,-500.0,0.00037261,120]
[339855943,1728072647473,-500.0,0.00037261,120]
[339855944,1728072647482,-286.97179939,0.00037261,120]
[339855945,1728072647491,-536.9,0.00037261,120]
[339855946,1728072647500,-500.0,0.00037261,120]
[339855947,1728072647510,-500.0,0.00037261,120]
[339855948,1728072647519,-500.0,0.00037261,120]
[339855949,1728072647528,-500.0,0.00037261,120]
[339855950,1728072647540,-500.0,0.00037261,120]
[339855951,1728072647552,-500.0,0.00037261,120]
[339855952,1728072647561,-500.0,0.00037261,120]
[339855953,1728072647570,-500.0,0.00037261,120]
[339855954,1728072647579,-626.73,0.00037261,120]
[339855955,1728072647589,-500.0,0.00037261,120]
[339855956,1728072647598,-500.0,0.00037261,120]
[339855957,1728072647608,-283.04,0.00037261,120]
[339855958,1728072647617,-987.54,0.00037261,120]
[339855959,1728072647626,-500.0,0.00037261,120]
[339855960,1728072647635,-500.0,0.00037261,120]
[339855961,1728072647644,-500.0,0.00037261,120]
[339855962,1728072647653,-500.0,0.00037261,120]
[339855963,1728072647663,-500.0,0.00037261,120]
[339855964,1728072647671,-500.0,0.00037261,120]
[339855965,1728072647681,-500.0,0.00037261,120]
[339855966,1728072647692,-500.0,0.00037261,120]
[339855967,1728072647703,-500.0,0.00037261,120]
[339855968,1728072647712,-504.11,0.00037261,120]
[339855969,1728072647721,-500.0,0.00037261,120]
[339855970,1728072647732,-500.0,0.00037261,120]
[339855971,1728072647748,-500.0,0.00037261,120]
[339855972,1728072647757,-1250.07,0.00037261,120]
[339855973,1728072647766,-500.0,0.00037261,120]
[339855974,1728072647775,-500.0,0.00037261,120]
[339855975,1728072647783,-303.5106181,0.00037261,120]
[339855976,1728072647792,-500.0,0.00037261,120]
[339855977,1728072647801,-534.02,0.00037261,120]
[339855978,1728072647810,-500.0,0.00037261,120]
[339855979,1728072647819,-500.0,0.00037261,120]
[339855980,1728072647828,-676.97,0.00037261,120]
[339855981,1728072647837,-767.38,0.00037261,120]
[339855982,1728072647846,-616.08,0.00037261,120]
[339855983,1728072647855,-1132.33,0.00037261,24]
[339855984,1728072647865,-500.0,0.00037261,120]
[339855985,1728072647874,-500.0,0.00037261,120]
[339855986,1728072647884,-500.0,0.00037261,120]
[339855987,1728072647893,-500.0,0.00037261,120]
[339855988,1728072647903,-2379.6,0.00037261,120]
[339855989,1728072647912,-500.0,0.00037261,120]
[339855990,1728072647921,-500.0,0.00037261,120]
[339855991,1728072647931,-500.0,0.00037261,120]
[339855992,1728072647940,-664.66,0.00037261,120]
[339855993,1728072647949,-500.0,0.00037261,120]
[339855994,1728072647958,-500.0,0.00037261,120]
[339855995,1728072647967,-500.0,0.00037261,120]
[339855996,1728072647979,-191.92,0.00037261,120]
[339855997,1728072647989,-1331.28,0.00037261,120]
[339855998,1728072647998,-500.0,0.00037261,120]
[339855999,1728072648007,-1012.06,0.00037261,120]
[339856000,1728072648018,-500.0,0.00037261,120]
[339856001,1728072648027,-818.68,0.00037261,120]
[339856002,1728072648036,-500.0,0.00037261,120]
[339856003,1728072648045,-500.0,0.00037261,120]
[339856004,1728072648055,-500.0,0.00037261,120]
[339856005,1728072648064,-500.0,0.00037261,120]
[339856006,1728072648074,-500.0,0.00037261,120]
[339856007,1728072648083,-538.99,0.00037261,120]
[339856008,1728072648092,-500.0,0.00037261,120]
[339856009,1728072648101,-676.85,0.00037261,120]
[339856010,1728072648110,-3067.57,0.00037261,120]
[339856011,1728072648119,-500.0,0.00037261,120]
[339856012,1728072648128,-500.0,0.00037261,120]
[339856013,1728072648137,-500.0,0.00037261,120]
[339856014,1728072648146,-500.0,0.00037262,120]
[339856015,1728072648155,-500.0,0.00037262,120]
[339856016,1728072648164,-500.0,0.00037262,120]
[339856017,1728072648175,-500.0,0.00037262,120]
[339856018,1728072648184,-537.09,0.00037262,120]
[339856019,1728072648193,-820.07,0.00037262,120]
[339856020,1728072648203,-500.0,0.00037262,120]
[339856021,1728072648212,-500.0,0.00037262,120]
[339856022,1728072648222,-633.53,0.00037262,120]
[339856023,1728072648231,-500.0,0.00037262,120]
[339856024,1728072648241,-810.03,0.00037262,120]
[339856025,1728072648250,-500.0,0.00037262,120]
[339856026,1728072648260,-500.0,0.00037262,120]
[339856027,1728072648269,-500.0,0.00037262,120]
[339856028,1728072648279,-500.0,0.00037262,120]
[339856029,1728072648288,-599.59797291,0.00037262,120]
[339856030,1728072648298,-500.0,0.00037262,120]
[339856031,1728072648307,-500.0,0.00037262,120]
[339856032,1728072648317,-500.0,0.00037262,120]
[339856033,1728072648326,-500.0,0.00037262,120]
[339856034,1728072648336,-500.0,0.00037262,120]
[339856035,1728072648345,-500.0,0.00037262,120]
[339856036,1728072648354,-500.0,0.00037262,120]
[339856037,1728072648364,-500.0,0.00037262,120]
[339856038,1728072648373,-560.87,0.00037262,120]
[339856039,1728072648382,-535.45,0.00037262,120]
[339856040,1728072648391,-500.0,0.00037262,120]
[339856041,1728072648401,-500.0,0.00037262,120]
[339856042,1728072648410,-500.0,0.00037262,120]
[339856043,1728072648420,-500.0,0.00037262,120]
[339856044,1728072648429,-500.0,0.00037262,120]
[339856045,1728072648439,-500.0,0.00037262,120]
[339856046,1728072648448,-500.0,0.00037262,120]
[339856047,1728072648458,-500.0,0.00037262,120]
[339856048,1728072648467,-500.0,0.00037262,120]
[339856049,1728072648477,-551.31782729,0.00037262,120]
[339856050,1728072648487,-500.0,0.00037262,120]
[339856051,1728072648497,-500.0,0.00037262,120]
[339856052,1728072648506,-779.62,0.00037262,120]
[339856053,1728072648516,-500.0,0.00037262,120]
[339856054,1728072648525,-500.0,0.00037262,120]
[339856055,1728072648536,-500.0,0.00037262,120]
[339856056,1728072648545,-447.50628364,0.00037262,120]
[339856057,1728072648555,-500.0,0.00037262,120]
[339856058,1728072648564,-500.0,0.00037262,120]
[339856059,1728072648574,-550.0,0.00037262,120]
[339856060,1728072648585,-150.0,0.00037262,120]
[339856061,1728072648594,-407.79804725,0.00037262,120]
[339856062,1728072648603,-1880.23,0.00037262,120]
[339856063,1728072648612,-500.0,0.00037262,120]
[339856064,1728072648622,-500.0,0.00037262,120]
[339856065,1728072648632,-500.0,0.00037262,120]
[339856066,1728072648641,-500.0,0.00037262,120]
[339856067,1728072648651,-509.89,0.00037262,120]
[339856068,1728072648661,-500.0,0.00037262,120]
[339856069,1728072648670,-500.0,0.00037262,120]
[339856070,1728072648680,-500.0,0.00037262,120]
[339856071,1728072648689,-500.0,0.00037262,7]
[339856072,1728072648699,-500.0,0.00037262,120]
[339856073,1728072648709,-500.0,0.00037262,120]
[339856074,1728072648719,-500.0,0.00037263,120]
[339856075,1728072648729,-847.37,0.00037263,120]
[339856076,1728072648738,-500.0,0.00037263,120]
[339856077,1728072648748,-582.51914124,0.00037263,120]
[339856078,1728072648758,-500.0,0.00037263,120]
[339856079,1728072648767,-500.0,0.00037263,120]
[339856080,1728072648778,-500.0,0.00037263,120]
[339856081,1728072648788,-159.92117322,0.00037263,120]
[339856082,1728072648797,-500.0,0.00037263,120]
[339856083,1728072648807,-500.0,0.00037263,120]
[339856084,1728072648818,-500.0,0.00037263,120]
[339856085,1728072648828,-500.0,0.00037263,120]
[339856086,1728072648838,-500.0,0.00037263,120]
[339856087,1728072648848,-500.0,0.00037263,120]
[339856088,1728072648858,-500.0,0.00037263,120]
[339856089,1728072648869,-500.0,0.00037263,120]
[339856090,1728072648879,-500.0,0.00037263,120]
[339856091,1728072648888,-500.0,0.00037263,120]
[339856092,1728072648898,-500.0,0.00037263,120]
[339856093,1728072648908,-500.0,0.00037263,120]
[339856094,1728072648918,-500.0,0.00037263,120]
[339856095,1728072648927,-500.0,0.00037263,120]
[339856096,1728072648937,-561.67,0.00037263,120]
[339856097,1728072648947,-683.76,0.00037263,120]
[339856098,1728072648957,-507.49,0.00037263,120]
[339856099,1728072648967,-628.61,0.00037263,120]
[339856100,1728072648979,-500.0,0.00037263,120]
[339856101,1728072648989,-500.0,0.00037263,120]
[339856102,1728072648998,-604.91,0.00037263,120]
[339856103,1728072649007,-500.0,0.00037263,120]
[339856104,1728072649018,-500.0,0.00037263,120]
[339856105,1728072649028,-500.0,0.00037263,120]
[339856106,1728072649038,-511.93,0.00037263,120]
[339856107,1728072649047,-736.13,0.00037263,120]
[339856108,1728072649059,-500.0,0.00037263,120]
[339856109,1728072649070,-2117.96,0.00037263,120]
[339856110,1728072649080,-500.0,0.00037263,120]
[339856111,1728072649090,-1972.03,0.00037263,120]
[339856112,1728072649100,-500.0,0.00037272,120]
[339856113,1728072649110,-548.08271931,0.00037272,120]
[339856114,1728072649119,-500.0,0.00037272,120]
[339856115,1728072649129,-500.0,0.00037272,120]
[339856116,1728072649138,-500.0,0.00037272,120]
[339856117,1728072649148,-500.0,0.00037272,120]
[339856118,1728072649157,-500.0,0.00037272,120]
[339856119,1728072649167,-500.0,0.00037272,120]
[339856120,1728072649176,-500.0,0.00037272,120]
[339856121,1728072649186,-500.0,0.00037272,120]
[339856122,1728072649196,-500.0,0.00037272,120]
[339856123,1728072649206,-500.0,0.00037272,120]
[339856124,1728072649216,-627.2875204,0.00037272,120]
[339856125,1728072649226,-500.0,0.00037272,120]
[339856126,1728072649235,-1174.22,0.00037272,120]
[339856127,1728072649246,-500.0,0.00037272,120]
[339856128,1728072649255,-500.0,0.00037272,120]
[339856129,1728072649265,-1319.52,0.00037272,120]
[339856130,1728072649275,-500.0,0.00037272,120]
[339856131,1728072649284,-500.0,0.00037273,5]
[339856132,1728072649295,-171.2190035,0.00037273,5]
[339856133,1728072649304,-500.0,0.00037273,2]
[339856134,1728072649314,-500.0,0.00037273,5]
[339856135,1728072649323,-500.0,0.00037273,5]
[339856136,1728072649333,-586.44862252,0.00037273,5]
[339856137,1728072649343,-151.100504,0.00037348,120]
[339856138,1728072649353,-892.0,0.00037429,5]
[339856139,1728072649364,-175.65007608,0.00037446,2]
[339856140,1728072649374,-500.0,0.00037534,120]
[339856141,1728072649384,-500.0,0.00037534,120]
[339856142,1728072649395,-500.0,0.00037534,120]
[339856143,1728072649404,-500.0,0.00037534,120]
[339856144,1728072649415,-500.0,0.00037534,120]
[339856145,1728072649425,-389.46209422,0.00037534,120]
[339856146,1728072649435,-500.0,0.00037534,120]
[339856147,1728072649445,-500.0,0.00037534,7]
[339856148,1728072649455,-621.73,0.00037534,120]
[339856149,1728072649464,-500.0,0.00037534,120]
[339856150,1728072649474,-500.0,0.00037534,120]
[339856151,1728072649483,-500.0,0.00037534,120]
[339856152,1728072649492,-593.63,0.00037534,120]
[339856153,1728072649502,-500.0,0.00037534,120]
[339856154,1728072649512,-500.0,0.00037534,120]
[339856155,1728072649521,-500.0,0.00037534,120]
[339856156,1728072649533,-500.0,0.00037534,120]
[339856157,1728072649543,-576.06740809,0.00037534,120]
[339856158,1728072649553,-500.0,0.00037534,120]
[339856159,1728072649563,-736.09,0.00037534,120]
[339856160,1728072649573,-500.0,0.00037534,120]
[339856161,1728072649582,-500.0,0.00037534,120]
[339856162,1728072649592,-521.49,0.00037534,120]
[339856163,1728072649603,-845.86,0.00037534,120]
[339856164,1728072649613,-867.68,0.00037534,120]
[339856165,1728072649623,-500.0,0.00037534,120]
[339856166,1728072649635,-500.0,0.00037534,120]
[339856167,1728072649644,-500.0,0.00037534,120]
[339856168,1728072649655,-500.0,0.00037534,120]
[339856169,1728072649665,-645.66,0.00037534,120]
[339856170,1728072649674,-625.52,0.00037534,120]
[339856171,1728072649684,-500.0,0.00037534,120]
[339856172,1728072649694,-692.74,0.00037534,120]
[339856173,1728072649704,-526.31,0.00037534,120]
[339856174,1728072649716,-500.0,0.00037534,120]
[339856175,1728072649726,-542.75,0.00037534,120]
[339856176,1728072649737,-500.0,0.00037534,120]
[339856177,1728072649748,-1018.13,0.00037534,120]
[339856178,1728072649758,-500.0,0.00037534,120]
[339856179,1728072649768,-500.0,0.00037534,120]
[339856180,1728072649777,-733.84,0.00037534,120]
[339856181,1728072649787,-568.94580287,0.00037534,120]
[339856182,1728072649796,-500.0,0.00037534,120]
[339856183,1728072649806,-500.0,0.00037534,120]
[339856184,1728072649816,-500.0,0.00037534,120]
[339856185,1728072649825,-500.0,0.00037534,120]
[339856186,1728072649836,-500.0,0.00037534,120]
[339856187,1728072649847,-500.0,0.00037534,120]
[339856188,1728072649856,-500.0,0.00037534,120]
[339856189,1728072649865,-632.41,0.00037534,120]
[339856190,1728072649876,-515.7,0.00037534,120]
[339856191,1728072649886,-500.0,0.00037534,120]
[339856192,1728072649896,-500.0,0.00037534,120]
[339856193,1728072649906,-615.85,0.00037534,120]
[339856194,1728072649916,-500.0,0.00037534,120]
[339856195,1728072649926,-814.37,0.00037534,120]
[339856196,1728072649936,-749.53,0.00037534,120]
[339856197,1728072649945,-1419.44,0.00037534,120]
[339856198,1728072649955,-1657.52,0.00037534,120]
[339856199,1728072649964,-562.7,0.00037534,120]
[339856200,1728072649974,-500.0,0.00037534,120]
[339856201,1728072649984,-500.0,0.00037534,120]
[339856202,1728072649994,-500.0,0.00037534,120]
[339856203,1728072650004,-2805.53,0.00037534,120]
[339856204,1728072650014,-508.83,0.00037534,120]
[339856205,1728072650023,-615.24,0.00037534,120]
[339856206,1728072650034,-500.0,0.00037534,120]
[339856207,1728072650044,-500.0,0.00037534,120]
[339856208,1728072650055,-1212.97,0.00037534,120]
[339856209,1728072650064,-314.21035227,0.00037534,120]
[339856210,1728072650074,-1217.4,0.00037534,120]
[339856211,1728072650084,-500.0,0.00037534,120]
[339856212,1728072650093,-1231.73,0.00037534,120]
[339856213,1728072650103,-500.0,0.00037534,120]
[339856214,1728072650114,-532.52,0.00037534,120]
[339856215,1728072650123,-855.6,0.00037534,120]
[339856216,1728072650133,-500.0,0.00037534,120]
[339856217,1728072650143,-500.0,0.00037534,21]
[339856218,1728072650153,-1012.3,0.00037534,120]
[339856219,1728072650163,-500.0,0.00037534,120]
[339856220,1728072650173,-500.0,0.00037534,14]
[339856221,1728072650183,-500.0,0.00037534,120]
[339856222,1728072650192,-1440.62,0.00037534,120]
[339856223,1728072650203,-500.0,0.00037534,120]
[339856224,1728072650212,-566.19,0.00037534,120]
[339856225,1728072650222,-659.64,0.00037534,120]
[339856226,1728072650232,-500.0,0.00037534,120]
[339856227,1728072650243,-1844.03,0.00037534,120]
[339856228,1728072650253,-3111.13,0.00037534,120]
[339856229,1728072650263,-500.0,0.00037534,120]
[339856230,1728072650272,-686.44,0.00037534,120]
[339856231,1728072650282,-500.0,0.00037534,120]
[339856232,1728072650292,-500.0,0.00037534,120]
[339856233,1728072650302,-500.0,0.00037534,120]
[339856234,1728072650311,-1560.97,0.00037534,120]
[339856235,1728072650321,-500.0,0.00037535,120]
[339856236,1728072650331,-240.43373024,0.00037535,120]
[339856237,1728072650340,-467.48089146,0.00037535,120]
[339856238,1728072650350,-1336.45,0.00037535,120]
[339856239,1728072650360,-500.0,0.00037535,120]
[339856240,1728072650369,-1336.48,0.00037535,120]
[339856241,1728072650379,-500.0,0.00037535,120]
[339856242,1728072650389,-348.23178977,0.00037535,120]
[339856243,1728072650399,-538.94,0.00037535,120]
[339856244,1728072650408,-500.0,0.00037535,120]
[339856245,1728072650418,-757.12,0.00037535,120]
[339856246,1728072650428,-616.09,0.00037535,120]
[339856247,1728072650438,-500.0,0.00037535,120]
[339856248,1728072650448,-500.0,0.00037535,120]
[339856249,1728072650457,-500.0,0.00037535,120]
[339856250,1728072650467,-1132.41,0.00037535,120]
[339856251,1728072650477,-894.14,0.00037535,120]
[339856252,1728072650486,-288.62512882,0.00037535,120]
[339856253,1728072650496,-500.0,0.00037535,120]
[339856254,1728072650506,-592.05,0.00037535,120]
[339856255,1728072650516,-500.0,0.00037535,120]
[339856256,1728072650525,-671.38,0.00037535,120]
[339856257,1728072650536,-500.0,0.00037535,120]
[339856258,1728072650546,-1846.3,0.00037535,120]
[339856259,1728072650556,-500.0,0.00037535,120]
[339856260,1728072650771,-889.97,0.00037535,120]
[339856261,1728072650783,-500.0,0.00037535,120]
[339856262,1728072650794,-4058.58,0.00037535,120]
[339856263,1728072650803,-628.76,0.00037535,120]
[339856264,1728072650813,-3402.8,0.00037535,120]
[339856265,1728072650822,-500.0,0.00037535,120]
[339856266,1728072650832,-1784.25,0.00037535,120]
[339856267,1728072650842,-500.0,0.00037535,120]
[339856268,1728072650851,-755.9,0.00037535,120]
[339856269,1728072650861,-455.02109285,0.00037535,120]
[339856270,1728072650871,-500.0,0.00037535,120]
[339856271,1728072650881,-970.91,0.00037535,120]
[339856272,1728072650890,-2014.6,0.00037535,120]
[339856273,1728072650899,-1456.9,0.00037535,120]
[339856274,1728072650909,-716.18,0.00037535,120]
[339856275,1728072650918,-520.29,0.00037535,120]
[339856276,1728072650928,-500.0,0.00037535,120]
[339856277,1728072650938,-828.01,0.00037535,120]
[339856278,1728072650947,-500.0,0.00037535,120]
[339856279,1728072650956,-1292.56,0.00037535,120]
[339856280,1728072650965,-1500.46,0.00037535,120]
[339856281,1728072650976,-635.49,0.00037535,120]
[339856282,1728072650986,-500.0,0.00037535,120]
[339856283,1728072650998,-500.0,0.00037535,120]
[339856284,1728072651007,-759.42,0.00037535,120]
[339856285,1728072651018,-500.0,0.00037535,120]
[339856286,1728072651028,-500.0,0.00037535,120]
[339856287,1728072651038,-2225.9,0.00037535,120]
[339856288,1728072651048,-1528.96,0.00037535,120]
[339856289,1728072651058,-500.0,0.00037535,120]
[339856290,1728072651068,-500.0,0.00037535,120]
[339856291,1728072651078,-523.46,0.00037535,120]
[339856292,1728072651087,-3051.38,0.00037535,120]
[339856293,1728072651096,-679.09,0.00037535,120]
[339856294,1728072651106,-898.65,0.00037535,120]
[339856295,1728072651116,-500.0,0.00037535,120]
[339856296,1728072651125,-897.3,0.00037535,120]
[339856297,1728072651135,-500.0,0.00037535,120]
[339856298,1728072651144,-756.0,0.00037535,120]
[339856299,1728072651154,-1596.18,0.00037535,120]
[339856300,1728072651163,-500.0,0.00037535,120]
[339856301,1728072651172,-1964.44,0.00037535,120]
[339856302,1728072651182,-500.0,0.00037535,120]
[339856303,1728072651191,-500.0,0.00037535,120]
[339856304,1728072651201,-548.42,0.00037535,120]
[339856305,1728072651210,-500.0,0.00037535,120]
[339856306,1728072651220,-500.0,0.00037535,120]
[339856307,1728072651228,-496.00000071,0.00037535,120]
[339856308,1728072651238,-669.72,0.00037535,120]
[339856309,1728072651250,-346.47,0.00037535,120]
[339856310,1728072651259,-500.0,0.00037535,120]
[339856311,1728072651268,-500.0,0.00037535,120]
[339856312,1728072651278,-500.0,0.00037535,120]
[339856313,1728072651287,-680.07,0.00037535,120]
[339856314,1728072651296,-500.0,0.00037535,120]
[339856315,1728072651305,-500.0,0.00037535,120]
[339856316,1728072651315,-500.0,0.00037535,120]
[339856317,1728072651324,-615.31,0.00037535,120]
[339856318,1728072651333,-608.59,0.00037535,120]
[339856319,1728072651343,-500.0,0.00037535,120]
[339856320,1728072651352,-500.0,0.00037535,120]
[339856321,1728072651372,-500.0,0.00037535,120]
[339856322,1728072651382,-500.0,0.00037535,120]
[339856323,1728072651393,-500.0,0.00037535,120]
[339856324,1728072651403,-500.0,0.00037535,120]
[339856325,1728072651414,-500.0,0.00037535,120]
[339856326,1728072651425,-320.90099838,0.00037535,120]
[339856327,1728072651435,-500.0,0.00037535,120]
[339856328,1728072651445,-604.81,0.00037535,120]
[339856329,1728072651455,-500.0,0.00037535,120]
[339856330,1728072651465,-500.0,0.00037535,120]
[339856331,1728072651475,-164.22627718,0.00037535,120]
[339856332,1728072651485,-500.0,0.00037535,120]
[339856333,1728072651496,-500.0,0.00037535,120]
[339856334,1728072651506,-500.0,0.00037535,120]
[339856335,1728072651516,-500.0,0.00037535,120]
[339856336,1728072651526,-500.0,0.00037535,120]
[339856337,1728072651536,-500.0,0.00037535,120]
[339856338,1728072651545,-536.9,0.00037535,120]
[339856339,1728072651554,-500.0,0.00037535,120]
[339856340,1728072651564,-500.0,0.00037535,120]
[339856341,1728072651574,-500.0,0.00037535,120]
[339856342,1728072651583,-500.0,0.00037535,120]
[339856343,1728072651593,-500.0,0.00037535,120]
[339856344,1728072651603,-500.0,0.00037535,120]
[339856345,1728072651612,-500.0,0.00037535,120]
[339856346,1728072651622,-626.73,0.00037535,120]
[339856347,1728072651632,-500.0,0.00037535,120]
[339856348,1728072651642,-500.0,0.00037535,120]
[339856349,1728072651652,-425.73,0.00037535,120]
[339856350,1728072651662,-987.54,0.00037535,120]
[339856351,1728072651672,-500.0,0.00037535,120]
[339856352,1728072651683,-500.0,0.00037535,120]
[339856353,1728072651694,-500.0,0.00037535,120]
[339856354,1728072651703,-500.0,0.00037535,120]
[339856355,1728072651715,-500.0,0.00037535,120]
[339856356,1728072651724,-500.0,0.00037535,120]
[339856357,1728072651734,-500.0,0.00037535,120]
[339856358,1728072651746,-500.0,0.00037535,120]
[339856359,1728072651756,-500.0,0.00037535,120]
[339856360,1728072651765,-504.11,0.00037535,120]
[339856361,1728072651775,-500.0,0.00037535,120]
[339856362,1728072651785,-500.0,0.00037535,120]
[339856363,1728072651795,-500.0,0.00037535,120]
[339856364,1728072651805,-1250.07,0.00037535,120]
[339856365,1728072651816,-500.0,0.00037535,120]
[339856366,1728072651825,-500.0,0.00037535,120]
[339856367,1728072651835,-500.0,0.00037535,120]
[339856368,1728072651844,-534.02,0.00037535,120]
[339856369,1728072651854,-500.0,0.00037535,120]
[339856370,1728072651864,-500.0,0.00037535,120]
[339856371,1728072651874,-676.97,0.00037535,120]
[339856372,1728072651883,-767.38,0.00037535,120]
[339856373,1728072651894,-616.08,0.00037535,120]
[339856374,1728072651903,-1132.33,0.00037535,24]
[339856375,1728072651913,-500.0,0.00037535,120]
[339856376,1728072651923,-500.0,0.00037535,120]
[339856377,1728072651932,-500.0,0.00037535,120]
[339856378,1728072651942,-500.0,0.00037535,120]
[339856379,1728072651952,-2379.6,0.00037535,120]
[339856380,1728072651961,-500.0,0.00037535,120]
[339856381,1728072651971,-500.0,0.00037535,120]
[339856382,1728072651985,-500.0,0.00037535,120]
[339856383,1728072651996,-664.66,0.00037535,120]
[339856384,1728072652005,-500.0,0.00037535,120]
[339856385,1728072652014,-500.0,0.00037535,120]
[339856386,1728072652025,-500.0,0.00037535,120]
[339856387,1728072652034,-1331.28,0.00037535,120]
[339856388,1728072652043,-500.0,0.00037535,120]
[339856389,1728072652053,-1012.06,0.00037535,120]
[339856390,1728072652063,-500.0,0.00037535,120]
[339856391,1728072652072,-818.68,0.00037535,120]
[339856392,1728072652082,-500.0,0.00037535,120]
[339856393,1728072652091,-500.0,0.00037535,120]
[339856394,1728072652101,-500.0,0.00037535,120]
[339856395,1728072652110,-500.0,0.00037535,120]
[339856396,1728072652119,-500.0,0.00037535,120]
[339856397,1728072652129,-538.99,0.00037535,120]
[339856398,1728072652138,-500.0,0.00037535,120]
[339856399,1728072652148,-676.85,0.00037535,120]
[339856400,1728072652157,-3067.57,0.00037535,120]
[339856401,1728072652166,-500.0,0.00037535,120]
[339856402,1728072652175,-500.0,0.00037535,120]
[339856403,1728072652184,-500.0,0.00037535,120]
[339856404,1728072652194,-500.0,0.00037536,120]
[339856405,1728072652203,-500.0,0.00037536,120]
[339856406,1728072652212,-500.0,0.00037536,120]
[339856407,1728072652222,-500.0,0.00037536,120]
[339856408,1728072652231,-537.09,0.00037536,120]
[339856409,1728072652240,-820.07,0.00037536,120]
[339856410,1728072652252,-500.0,0.00037536,120]
[339856411,1728072652261,-500.0,0.00037536,120]
[339856412,1728072652269,-633.53,0.00037536,120]
[339856413,1728072652278,-500.0,0.00037536,120]
[339856414,1728072652288,-810.03,0.00037536,120]
[339856415,1728072652298,-500.0,0.00037536,120]
[339856416,1728072652307,-500.0,0.00037536,120]
[339856417,1728072652316,-500.0,0.00037536,120]